[Event "Early-Titled-Tuesday-Blitz-October-17-2023"]
[Site "Chess.com"]
[Date "2023.10.17"]
[Round "7"]
[White "TigrVShlyape"]
[Black "SashaKuzhilniy"]
[Result "1/2-1/2"]
[WhiteElo "2830"]
[BlackElo "2629"]
[TimeControl "180+1"]
[EndTime "9:21:32 PDT"]
[Termination "Game drawn by repetition"]

1. d4 {[%clk 0:03:00.9]} 1... g6 {[%clk 0:02:59.8]} 2. e4 {[%clk 0:02:54.6]}
2... Bg7 {[%clk 0:02:59.2]} 3. c3 {[%clk 0:02:50.6]} 3... d6 {[%clk 0:02:58.7]}
4. Bg5 {[%clk 0:02:50.4]} 4... h6 {[%clk 0:02:54.5]} 5. Bh4 {[%clk 0:02:50.2]}
5... Nf6 {[%clk 0:02:50.6]} 6. Nd2 {[%clk 0:02:49.9]} 6... e5 {[%clk 0:02:48.8]}
7. dxe5 {[%clk 0:02:47.1]} 7... dxe5 {[%clk 0:02:48.8]} 8. Ngf3 {[%clk
0:02:46.6]} 8... Nbd7 {[%clk 0:02:44.4]} 9. Bc4 {[%clk 0:02:41.6]} 9... O-O
{[%clk 0:02:42.3]} 10. O-O {[%clk 0:02:41.4]} 10... Qe7 {[%clk 0:02:12.1]} 11.
Re1 {[%clk 0:02:40.4]} 11... Rd8 {[%clk 0:02:05.4]} 12. Qc2 {[%clk 0:02:39.3]}
12... a5 {[%clk 0:01:59.6]} 13. a4 {[%clk 0:02:35.6]} 13... g5 {[%clk
0:01:22.4]} 14. Bg3 {[%clk 0:02:35.1]} 14... Nh5 {[%clk 0:01:23]} 15. Nf1 {[%clk
0:02:32.7]} 15... Nb6 {[%clk 0:01:20.5]} 16. Bb3 {[%clk 0:02:30.6]} 16... Nf4
{[%clk 0:01:20.5]} 17. Ne3 {[%clk 0:02:28.9]} 17... Bd7 {[%clk 0:00:55]} 18. h4
{[%clk 0:02:20.7]} 18... g4 {[%clk 0:00:53.6]} 19. Nd2 {[%clk 0:02:17.4]} 19...
h5 {[%clk 0:00:52.9]} 20. Ndc4 {[%clk 0:02:14.3]} 20... Nxc4 {[%clk 0:00:52.1]}
21. Bxc4 {[%clk 0:02:14]} 21... Bf6 {[%clk 0:00:47.6]} 22. Bxf4 {[%clk
0:02:10.2]} 22... exf4 {[%clk 0:00:47.7]} 23. Nd5 {[%clk 0:02:10.6]} 23... Qe5
{[%clk 0:00:48.2]} 24. Nxf6+ {[%clk 0:02:10.6]} 24... Qxf6 {[%clk 0:00:48.7]}
25. e5 {[%clk 0:02:11.1]} 25... Bf5 {[%clk 0:00:35.7]} 26. exf6 {[%clk
0:02:04.3]} 26... Bxc2 {[%clk 0:00:35.4]} 27. Re7 {[%clk 0:02:04.4]} 27... Bg6
{[%clk 0:00:31.3]} 28. Rxc7 {[%clk 0:01:58.7]} 28... Rac8 {[%clk 0:00:29.5]} 29.
Rxc8 {[%clk 0:01:57.8]} 29... Rxc8 {[%clk 0:00:30.4]} 30. Bd5 {[%clk 0:01:57.9]}
30... Rd8 {[%clk 0:00:23.5]} 31. c4 {[%clk 0:01:56.2]} 31... b6 {[%clk 0:00:22]}
32. g3 {[%clk 0:01:51.5]} 32... f3 {[%clk 0:00:21.1]} 33. Kf1 {[%clk 0:01:48.7]}
33... Rd6 {[%clk 0:00:21.5]} 34. Ke1 {[%clk 0:01:48.8]} 34... Rxf6 {[%clk
0:00:21.5]} 35. Kd2 {[%clk 0:01:49.1]} 35... Rd6 {[%clk 0:00:19.6]} 36. Re1
{[%clk 0:01:48.3]} 36... Kf8 {[%clk 0:00:19.8]} 37. Kc3 {[%clk 0:01:48.5]} 37...
Bf5 {[%clk 0:00:18.4]} 38. Re5 {[%clk 0:01:46.5]} 38... Bg6 {[%clk 0:00:17.9]}
39. b4 {[%clk 0:01:46]} 39... axb4+ {[%clk 0:00:17.6]} 40. Kxb4 {[%clk
0:01:46.3]} 40... f6 {[%clk 0:00:17]} 41. Re6 {[%clk 0:01:44.1]} 41... Rxe6
{[%clk 0:00:16.5]} 42. Bxe6 {[%clk 0:01:44.7]} 42... Ke7 {[%clk 0:00:17]} 43.
Bd5 {[%clk 0:01:41.7]} 43... Kd6 {[%clk 0:00:17.5]} 44. Kb5 {[%clk 0:01:41.2]}
44... Kc7 {[%clk 0:00:16.7]} 45. a5 {[%clk 0:01:41.3]} 45... Be8+ {[%clk
0:00:11.1]} 46. Kb4 {[%clk 0:01:40.8]} 46... bxa5+ {[%clk 0:00:11]} 47. Kxa5
{[%clk 0:01:41]} 47... Bg6 {[%clk 0:00:11.2]} 48. c5 {[%clk 0:01:39.6]} 48...
Be8 {[%clk 0:00:10.8]} 49. Kb4 {[%clk 0:01:39.5]} 49... Bg6 {[%clk 0:00:09.8]}
50. Kc4 {[%clk 0:01:39.7]} 50... Kd7 {[%clk 0:00:08.4]} 51. Kd4 {[%clk
0:01:39.7]} 51... Kc7 {[%clk 0:00:09]} 52. Ke3 {[%clk 0:01:37.8]} 52... Kd7
{[%clk 0:00:08.4]} 53. Kf4 {[%clk 0:01:38.2]} 53... Kc7 {[%clk 0:00:08.9]} 54.
Be4 {[%clk 0:01:26.8]} 54... Bxe4 {[%clk 0:00:08.9]} 55. Kxe4 {[%clk 0:01:27.1]}
55... Kc6 {[%clk 0:00:09.5]} 56. Kd4 {[%clk 0:01:05.5]} 56... f5 {[%clk
0:00:09.5]} 57. Ke5 {[%clk 0:00:58.7]} 57... Kxc5 {[%clk 0:00:10.4]} 58. Kxf5
{[%clk 0:00:59.1]} 58... Kd4 {[%clk 0:00:11.1]} 59. Kg5 {[%clk 0:00:58.4]} 59...
Kd3 {[%clk 0:00:07.7]} 60. Kxh5 {[%clk 0:00:58.8]} 60... Ke2 {[%clk 0:00:08.4]}
61. Kxg4 {[%clk 0:00:59.4]} 61... Kxf2 {[%clk 0:00:09.3]} 62. h5 {[%clk
0:01:00]} 62... Kg2 {[%clk 0:00:08.6]} 63. h6 {[%clk 0:01:00.6]} 63... f2 {[%clk
0:00:09.3]} 64. h7 {[%clk 0:01:01.1]} 64... f1=Q {[%clk 0:00:09.8]} 65. h8=Q
{[%clk 0:01:01.3]} 65... Qf3+ {[%clk 0:00:10.5]} 66. Kg5 {[%clk 0:01:01.5]}
66... Qxg3+ {[%clk 0:00:10.7]} 67. Kf5 {[%clk 0:01:01.1]} 67... Qd3+ {[%clk
0:00:11.1]} 68. Ke6 {[%clk 0:01:01.2]} 68... Qc4+ {[%clk 0:00:11.3]} 69. Kd6
{[%clk 0:01:00.8]} 69... Qb4+ {[%clk 0:00:11.6]} 70. Kd5 {[%clk 0:01:00.8]}
70... Qb3+ {[%clk 0:00:11.8]} 71. Kd6 {[%clk 0:01:01]} 71... Qb4+ {[%clk
0:00:12.2]} 72. Kd5 {[%clk 0:01:01.4]} 72... Qb5+ {[%clk 0:00:12.8]} 73. Kd6
{[%clk 0:01:01.2]} 73... Qb6+ {[%clk 0:00:13.2]} 74. Kd5 {[%clk 0:01:01.5]}
74... Qb5+ {[%clk 0:00:13.8]} 75. Kd6 {[%clk 0:01:01.8]} 75... Qb6+ {[%clk
0:00:14.5]} 76. Kd5 {[%clk 0:01:02.2]} 76... Qb5+ {[%clk 0:00:15.2]} 1/2-1/2

[Event "Early-Titled-Tuesday-Blitz-October-17-2023"]
[Site "Chess.com"]
[Date "2023.10.17"]
[Round "7"]
[White "KIEV-1"]
[Black "lluiss"]
[Result "1-0"]
[WhiteElo "2282"]
[BlackElo "2141"]
[TimeControl "180+1"]
[EndTime "9:21:32 PDT"]
[Termination "KIEV-1 won on time"]

1. e4 {[%clk 0:03:00.9]} 1... c5 {[%clk 0:02:58.3]} 2. Nf3 {[%clk 0:02:58.7]}
2... d6 {[%clk 0:02:58.2]} 3. d4 {[%clk 0:02:59.1]} 3... cxd4 {[%clk 0:02:58.7]}
4. Nxd4 {[%clk 0:02:59.4]} 4... Nf6 {[%clk 0:02:59.3]} 5. Nc3 {[%clk 0:02:59.7]}
5... g6 {[%clk 0:02:59.3]} 6. f3 {[%clk 0:02:59.7]} 6... Bg7 {[%clk 0:02:59.9]}
7. Be3 {[%clk 0:03:00.1]} 7... O-O {[%clk 0:03:00]} 8. Qd2 {[%clk 0:03:00.6]}
8... Nc6 {[%clk 0:03:00.4]} 9. O-O-O {[%clk 0:03:00.8]} 9... Nxd4 {[%clk
0:03:01.1]} 10. Bxd4 {[%clk 0:03:01]} 10... Be6 {[%clk 0:03:01.7]} 11. g4 {[%clk
0:03:01.2]} 11... Qa5 {[%clk 0:03:01.3]} 12. a3 {[%clk 0:03:01.2]} 12... Rfc8
{[%clk 0:02:58.1]} 13. h4 {[%clk 0:03:00.2]} 13... Bc4 {[%clk 0:02:56.1]} 14. h5
{[%clk 0:02:55.1]} 14... Bxf1 {[%clk 0:02:55.4]} 15. Rdxf1 {[%clk 0:02:50.6]}
15... Rc4 {[%clk 0:02:55.8]} 16. hxg6 {[%clk 0:02:12]} 16... hxg6 {[%clk
0:02:53.7]} 17. g5 {[%clk 0:01:11.8]} 17... Rxd4 {[%clk 0:02:34.9]} 18. Qxd4
{[%clk 0:01:10.9]} 18... Qxg5+ {[%clk 0:02:35.3]} 19. Kb1 {[%clk 0:01:09.6]}
19... Qa5 {[%clk 0:01:14.3]} 20. Qc4 {[%clk 0:00:54.1]} 20... Nd7 {[%clk
0:00:54.4]} 21. Nd5 {[%clk 0:00:48.8]} 21... e6 {[%clk 0:00:43.7]} 22. Nf4
{[%clk 0:00:31.2]} 22... Ne5 {[%clk 0:00:30.7]} 23. Qb3 {[%clk 0:00:31.1]} 23...
Re8 {[%clk 0:00:18.5]} 24. Rd1 {[%clk 0:00:28.3]} 24... b5 {[%clk 0:00:17.7]}
25. Rxd6 {[%clk 0:00:25.8]} 25... Nc4 {[%clk 0:00:18]} 26. Rhd1 {[%clk
0:00:14.3]} 26... Nxd6 {[%clk 0:00:15.3]} 27. Rxd6 {[%clk 0:00:15.2]} 27... Be5
{[%clk 0:00:15.4]} 28. Rd7 {[%clk 0:00:04.7]} 28... Bxf4 {[%clk 0:00:14.3]} 29.
Qd3 {[%clk 0:00:05.3]} 29... Be5 {[%clk 0:00:13]} 30. Qe3 {[%clk 0:00:05.1]}
30... Qb6 {[%clk 0:00:12.5]} 31. Qd2 {[%clk 0:00:03.2]} 31... Rc8 {[%clk
0:00:09.3]} 32. f4 {[%clk 0:00:03.2]} 32... Bf6 {[%clk 0:00:04.5]} 33. e5 {[%clk
0:00:03.6]} 33... Bg7 {[%clk 0:00:03.9]} 34. Re7 {[%clk 0:00:02.7]} 34... Bf8
{[%clk 0:00:03.8]} 35. Rd7 {[%clk 0:00:02.5]} 35... Qc6 {[%clk 0:00:03.9]} 36.
c3 {[%clk 0:00:03.1]} 36... a5 {[%clk 0:00:03.4]} 37. Qd3 {[%clk 0:00:03.4]}
37... b4 {[%clk 0:00:03.5]} 38. axb4 {[%clk 0:00:04.3]} 38... axb4 {[%clk
0:00:03.9]} 39. cxb4 {[%clk 0:00:04.5]} 39... Bxb4 {[%clk 0:00:02.8]} 40. Ka2
{[%clk 0:00:03]} 40... Qa4+ {[%clk 0:00:01.7]} 41. Kb1 {[%clk 0:00:03.1]} 41...
Ra8 {[%clk 0:00:01.9]} 42. Rd8+ {[%clk 0:00:03.2]} 42... Kg7 {[%clk 0:00:01.5]}
43. Rxa8 {[%clk 0:00:03.1]} 43... Qa1+ {[%clk 0:00:02]} 44. Kxa1 {[%clk
0:00:02.1]} 1-0

[Event "Early-Titled-Tuesday-Blitz-October-17-2023"]
[Site "Chess.com"]
[Date "2023.10.17"]
[Round "7"]
[White "Khuslen2008"]
[Black "ivana_999"]
[Result "1-0"]
[WhiteElo "2282"]
[BlackElo "2092"]
[TimeControl "180+1"]
[EndTime "9:21:33 PDT"]
[Termination "Khuslen2008 won by resignation"]

1. d4 {[%clk 0:02:59.7]} 1... Nf6 {[%clk 0:03:00]} 2. c4 {[%clk 0:02:59.7]} 2...
c5 {[%clk 0:03:00.5]} 3. d5 {[%clk 0:02:59.7]} 3... e5 {[%clk 0:03:00.7]} 4. Nc3
{[%clk 0:02:53.8]} 4... d6 {[%clk 0:03:00.7]} 5. e4 {[%clk 0:02:53.2]} 5... Nbd7
{[%clk 0:03:00.2]} 6. Nf3 {[%clk 0:02:52.7]} 6... Be7 {[%clk 0:02:59]} 7. Be2
{[%clk 0:02:50.6]} 7... Nf8 {[%clk 0:02:57.8]} 8. O-O {[%clk 0:02:49.7]} 8... h5
{[%clk 0:02:56.7]} 9. Bg5 {[%clk 0:02:15.5]} 9... Ng6 {[%clk 0:02:36.4]} 10. Nh4
{[%clk 0:02:14.8]} 10... Nxh4 {[%clk 0:02:30.7]} 11. Bxh4 {[%clk 0:02:14.6]}
11... Nxd5 {[%clk 0:02:29.4]} 12. Nxd5 {[%clk 0:02:03.7]} 12... Bxh4 {[%clk
0:02:27.4]} 13. Bxh5 {[%clk 0:01:58.5]} 13... g6 {[%clk 0:02:21.3]} 14. Bg4
{[%clk 0:01:57.1]} 14... Be6 {[%clk 0:02:01]} 15. Ne3 {[%clk 0:01:34.8]} 15...
Bg5 {[%clk 0:01:45.7]} 16. Nd5 {[%clk 0:00:55.8]} 16... Qd7 {[%clk 0:01:28.1]}
17. h3 {[%clk 0:00:51.8]} 17... Bxg4 {[%clk 0:01:15.9]} 18. Qxg4 {[%clk
0:00:50.6]} 18... Qxg4 {[%clk 0:01:15.7]} 19. hxg4 {[%clk 0:00:50.7]} 19... Kd7
{[%clk 0:01:15.8]} 20. Rad1 {[%clk 0:00:48.9]} 20... Rh7 {[%clk 0:01:06.6]} 21.
f3 {[%clk 0:00:47.3]} 21... Bh4 {[%clk 0:01:03.3]} 22. g3 {[%clk 0:00:41]} 22...
Be7 {[%clk 0:01:00.5]} 23. Kg2 {[%clk 0:00:39.9]} 23... Rah8 {[%clk 0:00:59.5]}
24. Rh1 {[%clk 0:00:36.2]} 24... Rxh1 {[%clk 0:00:59.1]} 25. Rxh1 {[%clk
0:00:36.5]} 25... Rxh1 {[%clk 0:00:59.4]} 26. Kxh1 {[%clk 0:00:37]} 26... Bg5
{[%clk 0:00:57.7]} 27. f4 {[%clk 0:00:36.6]} 27... exf4 {[%clk 0:00:57.4]} 28.
gxf4 {[%clk 0:00:36.8]} 28... Bh4 {[%clk 0:00:56.9]} 29. Kg2 {[%clk 0:00:36.8]}
29... Be1 {[%clk 0:00:56]} 30. Kf3 {[%clk 0:00:35.5]} 30... Bd2 {[%clk
0:00:55.1]} 31. g5 {[%clk 0:00:27.5]} 31... Bc1 {[%clk 0:00:53.1]} 32. b3 {[%clk
0:00:27.6]} 32... Bb2 {[%clk 0:00:52.2]} 33. Kg4 {[%clk 0:00:27.6]} 33... Ke6
{[%clk 0:00:49.3]} 34. f5+ {[%clk 0:00:27.4]} 34... Kd7 {[%clk 0:00:47.5]} 35.
Nf4 {[%clk 0:00:24.8]} 35... gxf5+ {[%clk 0:00:41.9]} 36. exf5 {[%clk
0:00:25.1]} 36... a6 {[%clk 0:00:39.2]} 37. g6 {[%clk 0:00:24.6]} 37... fxg6
{[%clk 0:00:39]} 38. fxg6 {[%clk 0:00:24.5]} 38... b5 {[%clk 0:00:37]} 39. Nh5
{[%clk 0:00:23.1]} 39... bxc4 {[%clk 0:00:33.6]} 40. bxc4 {[%clk 0:00:22.8]}
40... d5 {[%clk 0:00:33.8]} 41. cxd5 {[%clk 0:00:21.5]} 41... c4 {[%clk
0:00:34.1]} 42. Kf5 {[%clk 0:00:19.9]} 42... Kd6 {[%clk 0:00:33.4]} 43. Nf6
{[%clk 0:00:19.5]} 43... Bxf6 {[%clk 0:00:31.4]} 44. Kxf6 {[%clk 0:00:19.6]}
44... c3 {[%clk 0:00:32]} 45. g7 {[%clk 0:00:20]} 45... c2 {[%clk 0:00:32.6]}
46. g8=Q {[%clk 0:00:19.6]} 46... c1=Q {[%clk 0:00:33.5]} 47. Qd8+ {[%clk
0:00:18]} 47... Kc5 {[%clk 0:00:31]} 48. Qc7+ {[%clk 0:00:18]} 48... Kxd5 {[%clk
0:00:31]} 49. Qxc1 {[%clk 0:00:17.3]} 49... Kd4 {[%clk 0:00:31.9]} 50. Qd2+
{[%clk 0:00:15.6]} 50... Kc4 {[%clk 0:00:32.1]} 51. Qe2+ {[%clk 0:00:14.1]}
51... Kb4 {[%clk 0:00:32.4]} 52. Qxa6 {[%clk 0:00:13.9]} 52... Kc3 {[%clk
0:00:32.4]} 53. a4 {[%clk 0:00:13.3]} 53... Kb2 {[%clk 0:00:33.3]} 54. a5 {[%clk
0:00:13.6]} 54... Ka1 {[%clk 0:00:34.2]} 55. Qb5 {[%clk 0:00:13.5]} 55... Ka2
{[%clk 0:00:34.9]} 56. a6 {[%clk 0:00:13.9]} 56... Ka1 {[%clk 0:00:35.8]} 57. a7
{[%clk 0:00:14.3]} 57... Ka2 {[%clk 0:00:36.7]} 1-0

[Event "Early-Titled-Tuesday-Blitz-October-17-2023"]
[Site "Chess.com"]
[Date "2023.10.17"]
[Round "7"]
[White "scarabee43"]
[Black "Let_it_be_1"]
[Result "1-0"]
[WhiteElo "2803"]
[BlackElo "2643"]
[TimeControl "180+1"]
[EndTime "9:21:38 PDT"]
[Termination "scarabee43 won on time"]

1. Nf3 {[%clk 0:03:00.9]} 1... d5 {[%clk 0:02:57.3]} 2. e3 {[%clk 0:03:00.8]}
2... Nf6 {[%clk 0:02:56.4]} 3. c4 {[%clk 0:03:00.8]} 3... e6 {[%clk 0:02:56.3]}
4. Nc3 {[%clk 0:03:00.9]} 4... Be7 {[%clk 0:02:56.2]} 5. b3 {[%clk 0:03:01.2]}
5... O-O {[%clk 0:02:55.3]} 6. Bb2 {[%clk 0:03:01.9]} 6... c5 {[%clk 0:02:54.2]}
7. cxd5 {[%clk 0:03:01.7]} 7... exd5 {[%clk 0:02:54.3]} 8. d4 {[%clk 0:03:01]}
8... Nc6 {[%clk 0:02:54.7]} 9. Be2 {[%clk 0:03:00.4]} 9... cxd4 {[%clk
0:02:55.2]} 10. Nxd4 {[%clk 0:03:00.4]} 10... Bc5 {[%clk 0:02:55.5]} 11. Nxc6
{[%clk 0:02:58.2]} 11... bxc6 {[%clk 0:02:56.4]} 12. O-O {[%clk 0:02:58.5]}
12... Bd6 {[%clk 0:02:56.7]} 13. Rc1 {[%clk 0:02:58.8]} 13... Bd7 {[%clk
0:02:55.3]} 14. Qd4 {[%clk 0:02:54.8]} 14... Re8 {[%clk 0:02:54.1]} 15. Rfd1
{[%clk 0:02:52.8]} 15... Qe7 {[%clk 0:02:40.5]} 16. Na4 {[%clk 0:02:46.6]} 16...
Rad8 {[%clk 0:02:17.6]} 17. Nc5 {[%clk 0:02:45.1]} 17... Bc8 {[%clk 0:02:17]}
18. b4 {[%clk 0:02:36.7]} 18... Qc7 {[%clk 0:02:08.3]} 19. g3 {[%clk 0:02:28.9]}
19... Be5 {[%clk 0:02:01.6]} 20. Qd2 {[%clk 0:02:28.6]} 20... Bg4 {[%clk
0:01:35.3]} 21. Bxe5 {[%clk 0:02:26.7]} 21... Qxe5 {[%clk 0:01:33.1]} 22. Bxg4
{[%clk 0:01:44]} 22... Nxg4 {[%clk 0:01:31.7]} 23. h3 {[%clk 0:01:44.7]} 23...
Nf6 {[%clk 0:01:25.7]} 24. Qd4 {[%clk 0:01:40.9]} 24... Qf5 {[%clk 0:01:18.3]}
25. Kg2 {[%clk 0:01:39.8]} 25... h5 {[%clk 0:01:08.7]} 26. Qf4 {[%clk
0:01:24.5]} 26... Qxf4 {[%clk 0:00:53.1]} 27. exf4 {[%clk 0:01:17.2]} 27... Re2
{[%clk 0:00:48.2]} 28. a4 {[%clk 0:01:15.5]} 28... Rb8 {[%clk 0:00:41.7]} 29.
Nd3 {[%clk 0:01:13.5]} 29... Ra2 {[%clk 0:00:20.4]} 30. a5 {[%clk 0:01:11.2]}
30... Re8 {[%clk 0:00:20.3]} 31. Rxc6 {[%clk 0:01:06.7]} 31... Ree2 {[%clk
0:00:20.4]} 32. Kg1 {[%clk 0:00:47.6]} 32... Ne4 {[%clk 0:00:20]} 33. Nc1 {[%clk
0:00:47.9]} 33... Nxf2 {[%clk 0:00:11.8]} 34. Nxe2 {[%clk 0:00:45.6]} 34... Nxd1
{[%clk 0:00:10.7]} 35. Nd4 {[%clk 0:00:46]} 35... Ne3 {[%clk 0:00:09.2]} 36.
Rc8+ {[%clk 0:00:37.1]} 36... Kh7 {[%clk 0:00:08.8]} 37. Rc7 {[%clk 0:00:37.8]}
37... Rg2+ {[%clk 0:00:07.8]} 38. Kh1 {[%clk 0:00:38.1]} 38... Rd2 {[%clk
0:00:07.2]} 39. Nf3 {[%clk 0:00:37.1]} 39... Rf2 {[%clk 0:00:06.3]} 40. Ng5+
{[%clk 0:00:37]} 40... Kg6 {[%clk 0:00:06.7]} 41. Nxf7 {[%clk 0:00:29.7]} 41...
Rf1+ {[%clk 0:00:06.2]} 42. Kh2 {[%clk 0:00:30.2]} 42... Rf2+ {[%clk 0:00:06.6]}
43. Kg1 {[%clk 0:00:30.7]} 43... Rg2+ {[%clk 0:00:06.9]} 44. Kh1 {[%clk
0:00:30.7]} 44... Rxg3 {[%clk 0:00:07.1]} 45. Ne5+ {[%clk 0:00:30.1]} 45... Kf5
{[%clk 0:00:07]} 46. Rxa7 {[%clk 0:00:29.9]} 46... Kxf4 {[%clk 0:00:07]} 47.
Nd3+ {[%clk 0:00:29.6]} 47... Ke4 {[%clk 0:00:07.4]} 48. Nc5+ {[%clk 0:00:29.6]}
48... Kf3 {[%clk 0:00:06.5]} 49. Rf7+ {[%clk 0:00:29.5]} 49... Ke2 {[%clk
0:00:06.9]} 50. a6 {[%clk 0:00:30]} 50... Rxh3+ {[%clk 0:00:06.8]} 51. Kg1
{[%clk 0:00:30.5]} 51... Rg3+ {[%clk 0:00:06.9]} 52. Kh2 {[%clk 0:00:31]} 52...
Rg2+ {[%clk 0:00:06.7]} 53. Kh1 {[%clk 0:00:30.3]} 53... Rg4 {[%clk 0:00:03.1]}
54. a7 {[%clk 0:00:30.4]} 54... Rh4+ {[%clk 0:00:02.2]} 55. Kg1 {[%clk
0:00:30.7]} 55... Rg4+ {[%clk 0:00:02.1]} 56. Kh2 {[%clk 0:00:31.1]} 56... Rh4+
{[%clk 0:00:02.1]} 57. Kg3 {[%clk 0:00:31.3]} 57... Rg4+ {[%clk 0:00:01.3]} 58.
Kh3 {[%clk 0:00:31.5]} 1-0

[Event "Early-Titled-Tuesday-Blitz-October-17-2023"]
[Site "Chess.com"]
[Date "2023.10.17"]
[Round "7"]
[White "Treasurechess777"]
[Black "borocotoajua"]
[Result "0-1"]
[WhiteElo "2453"]
[BlackElo "2599"]
[TimeControl "180+1"]
[EndTime "9:21:38 PDT"]
[Termination "borocotoajua won by checkmate"]

1. Nf3 {[%clk 0:02:59.1]} 1... Nf6 {[%clk 0:02:59.7]} 2. b3 {[%clk 0:02:55.7]}
2... d5 {[%clk 0:02:52.9]} 3. Bb2 {[%clk 0:02:55.7]} 3... c5 {[%clk 0:02:51.9]}
4. e3 {[%clk 0:02:56]} 4... a6 {[%clk 0:02:52]} 5. c4 {[%clk 0:02:55.2]} 5...
dxc4 {[%clk 0:02:41.3]} 6. bxc4 {[%clk 0:02:56.1]} 6... Nc6 {[%clk 0:02:40]} 7.
d4 {[%clk 0:02:54.9]} 7... e6 {[%clk 0:02:37.6]} 8. Nbd2 {[%clk 0:02:53.5]} 8...
Be7 {[%clk 0:02:35.2]} 9. Bd3 {[%clk 0:02:52]} 9... O-O {[%clk 0:02:33.8]} 10.
O-O {[%clk 0:02:52]} 10... b6 {[%clk 0:02:33]} 11. Rc1 {[%clk 0:02:48.2]} 11...
Bb7 {[%clk 0:02:32]} 12. a3 {[%clk 0:02:47]} 12... Rc8 {[%clk 0:02:31.3]} 13.
Bb1 {[%clk 0:02:39.6]} 13... Bd6 {[%clk 0:02:18.3]} 14. Qc2 {[%clk 0:02:38.2]}
14... cxd4 {[%clk 0:02:10.6]} 15. exd4 {[%clk 0:02:37.2]} 15... Na5 {[%clk
0:01:58]} 16. d5 {[%clk 0:02:33.4]} 16... g6 {[%clk 0:01:48.2]} 17. Qc3 {[%clk
0:02:05.5]} 17... e5 {[%clk 0:01:47.1]} 18. Nxe5 {[%clk 0:02:04.3]} 18... Nxd5
{[%clk 0:01:41.2]} 19. Qd4 {[%clk 0:01:54.8]} 19... Bc5 {[%clk 0:01:22.1]} 20.
Qg4 {[%clk 0:01:46.4]} 20... Nf6 {[%clk 0:01:07.1]} 21. Qf4 {[%clk 0:01:45.7]}
21... Nh5 {[%clk 0:00:57.7]} 22. Qh6 {[%clk 0:01:44.9]} 22... Bd4 {[%clk
0:00:49.4]} 23. Bxd4 {[%clk 0:01:11.9]} 23... Qxd4 {[%clk 0:00:50.3]} 24. Ndf3
{[%clk 0:01:09.8]} 24... Qf4 {[%clk 0:00:42.4]} 25. Ng5 {[%clk 0:01:02]} 25...
Nf6 {[%clk 0:00:42.6]} 26. Bxg6 {[%clk 0:00:41]} 26... fxg6 {[%clk 0:00:21.9]}
27. Nxg6 {[%clk 0:00:40.7]} 27... Qg4 {[%clk 0:00:12.5]} 28. f3 {[%clk 0:00:30]}
28... Qd7 {[%clk 0:00:12.5]} 29. Nxf8 {[%clk 0:00:18.7]} 29... Rxf8 {[%clk
0:00:13.4]} 30. c5 {[%clk 0:00:14.2]} 30... b5 {[%clk 0:00:07.8]} 31. Rfd1
{[%clk 0:00:13]} 31... Qf5 {[%clk 0:00:04.2]} 32. Rd6 {[%clk 0:00:07.2]} 32...
Nc4 {[%clk 0:00:04]} 33. Rxf6 {[%clk 0:00:04.1]} 33... Rxf6 {[%clk 0:00:03.9]}
34. Qh5 {[%clk 0:00:03.7]} 34... Qxc5+ {[%clk 0:00:04.1]} 35. Kh1 {[%clk
0:00:03.2]} 35... Qf5 {[%clk 0:00:04.4]} 36. Qe8+ {[%clk 0:00:03.3]} 36... Rf8
{[%clk 0:00:05.1]} 37. Qh5 {[%clk 0:00:02.9]} 37... Qg6 {[%clk 0:00:05.1]} 38.
Qh4 {[%clk 0:00:02.5]} 38... Bd5 {[%clk 0:00:04.8]} 39. Re1 {[%clk 0:00:03.1]}
39... Bf7 {[%clk 0:00:04.8]} 40. Re7 {[%clk 0:00:03.4]} 40... Rd8 {[%clk
0:00:05.2]} 41. h3 {[%clk 0:00:03.7]} 41... Rd1+ {[%clk 0:00:05.5]} 42. Kh2
{[%clk 0:00:04.6]} 42... Qd6+ {[%clk 0:00:06]} 43. Qg3 {[%clk 0:00:03.5]} 43...
Rh1+ {[%clk 0:00:06.5]} 44. Kxh1 {[%clk 0:00:03.3]} 44... Qxg3 {[%clk
0:00:07.4]} 45. Nxf7 {[%clk 0:00:03.2]} 45... Kf8 {[%clk 0:00:06.8]} 46. Ra7
{[%clk 0:00:02.3]} 46... Ne3 {[%clk 0:00:07.4]} 47. Ne5 {[%clk 0:00:01.7]} 47...
Qxg2# {[%clk 0:00:07.6]} 0-1

[Event "Early-Titled-Tuesday-Blitz-October-17-2023"]
[Site "Chess.com"]
[Date "2023.10.17"]
[Round "7"]
[White "blitzo_vich"]
[Black "ChainedDowntohell"]
[Result "0-1"]
[WhiteElo "2588"]
[BlackElo "2469"]
[TimeControl "180+1"]
[EndTime "9:21:41 PDT"]
[Termination "ChainedDowntohell won on time"]

1. e4 {[%clk 0:03:00.9]} 1... c5 {[%clk 0:02:59.5]} 2. Nf3 {[%clk 0:03:00.8]}
2... d6 {[%clk 0:02:59.3]} 3. Bb5+ {[%clk 0:02:58.6]} 3... Nc6 {[%clk
0:02:58.9]} 4. Bxc6+ {[%clk 0:02:54.7]} 4... bxc6 {[%clk 0:02:58.4]} 5. O-O
{[%clk 0:02:55.2]} 5... e6 {[%clk 0:02:51]} 6. e5 {[%clk 0:02:48.8]} 6... f6
{[%clk 0:02:50.8]} 7. exd6 {[%clk 0:02:47]} 7... Bxd6 {[%clk 0:02:32.7]} 8. Na3
{[%clk 0:02:46.1]} 8... Ne7 {[%clk 0:02:26.7]} 9. Nc4 {[%clk 0:02:45.2]} 9... e5
{[%clk 0:02:25.2]} 10. d3 {[%clk 0:02:44.9]} 10... Bg4 {[%clk 0:02:22.9]} 11.
Qe2 {[%clk 0:02:27.4]} 11... O-O {[%clk 0:02:15.9]} 12. h3 {[%clk 0:02:23]}
12... Bh5 {[%clk 0:02:15.2]} 13. Qe3 {[%clk 0:02:05.1]} 13... Nd5 {[%clk
0:02:07]} 14. Qe2 {[%clk 0:01:56]} 14... Qe7 {[%clk 0:02:02.7]} 15. Bd2 {[%clk
0:01:43.5]} 15... Rae8 {[%clk 0:02:01.3]} 16. Rfe1 {[%clk 0:01:41.7]} 16... g5
{[%clk 0:01:58.3]} 17. g4 {[%clk 0:01:39.2]} 17... Bg6 {[%clk 0:01:56.8]} 18.
Qf1 {[%clk 0:01:31.2]} 18... h5 {[%clk 0:01:54.3]} 19. Qg2 {[%clk 0:01:29.6]}
19... Kg7 {[%clk 0:01:48.9]} 20. Nh2 {[%clk 0:01:28]} 20... Qd7 {[%clk
0:01:37.6]} 21. Re2 {[%clk 0:01:20.3]} 21... Rh8 {[%clk 0:01:34.9]} 22. Rae1
{[%clk 0:01:18]} 22... hxg4 {[%clk 0:01:31.6]} 23. hxg4 {[%clk 0:01:11.8]} 23...
Rh4 {[%clk 0:01:27.9]} 24. f3 {[%clk 0:01:11.2]} 24... Reh8 {[%clk 0:01:19.1]}
25. Nf1 {[%clk 0:01:10.2]} 25... Nf4 {[%clk 0:01:06.8]} 26. Bxf4 {[%clk
0:01:07.9]} 26... gxf4 {[%clk 0:01:05.7]} 27. Nfd2 {[%clk 0:01:03.7]} 27... Bc7
{[%clk 0:00:56.3]} 28. Nf1 {[%clk 0:00:39.5]} 28... Kf8 {[%clk 0:00:44.1]} 29.
Rd1 {[%clk 0:00:32.9]} 29... Bf7 {[%clk 0:00:33.3]} 30. b3 {[%clk 0:00:28.8]}
30... Bxc4 {[%clk 0:00:17.6]} 31. bxc4 {[%clk 0:00:27.5]} 31... Ba5 {[%clk
0:00:18.1]} 32. Re4 {[%clk 0:00:22.9]} 32... Bc3 {[%clk 0:00:15.9]} 33. Kf2
{[%clk 0:00:21.5]} 33... Qb7 {[%clk 0:00:09]} 34. g5 {[%clk 0:00:16.8]} 34...
Qb2 {[%clk 0:00:06.3]} 35. Re2 {[%clk 0:00:11.9]} 35... Rg8 {[%clk 0:00:04.8]}
36. Nd2 {[%clk 0:00:07.5]} 36... Rxg5 {[%clk 0:00:04.4]} 37. Qf1 {[%clk
0:00:07.9]} 37... Qxc2 {[%clk 0:00:02.3]} 38. Rb1 {[%clk 0:00:04.1]} 38... Bxd2
{[%clk 0:00:01.7]} 39. Rb8+ {[%clk 0:00:03.1]} 39... Kf7 {[%clk 0:00:02.1]} 40.
Qh3 {[%clk 0:00:02.1]} 40... Kg6 {[%clk 0:00:02.2]} 41. Rb7 {[%clk 0:00:02.7]}
41... Be3+ {[%clk 0:00:02.3]} 42. Kf1 {[%clk 0:00:01.2]} 42... Qd1+ {[%clk
0:00:02.4]} 0-1